[Event "FIDE Zonal 2.5 Open 2019"]
[Site "Montevideo"]
[Date "2019.04.16"]
[Round "6.26"]
[White "Fein, Jorge"]
[Black "Prieto Perez, Rodrigo"]
[Result "1/2-1/2"]
[ECO "A05"]
[WhiteElo "1648"]
[BlackElo "2037"]
[Annotator "NA RC"]
[PlyCount "75"]
[EventDate "2019.04.13"]
[EventType "swiss"]
[EventCountry "URU"]
[SourceTitle "playchess.com"]
[Source "ChessBase"]
[SourceQuality "1"]
[TimeControl "40/5400+30:1800+30"]

{[%evp 19,68,-33,32767,-8,32767,-20,32767,-9,-4,0,-6,-3,0,-6,4,32767,32767,-36,28,-50,-58,-85,-34,-136,32767,-152,32767,32767,-161,-192,32767,32767,32767,32767,32767,-494,-552,-484,-542,-528,-429,-476,-440,-425,32767,32767,32767,32767,-475,32767,-492]} 1. Nf3 {[%emt 0:00:00]} Nf6 {[%emt 0:00:00]} 2. b3 {[%emt 0:00:00]} d5 {[%emt 0:01:46]} 3. Bb2 {[%emt 0:00:00]} g6 {[%emt 0:00:30]} (3... e6 4. g3 b6 5. Bg2 Bb7 6. O-O Be7 7. c4 O-O 8. cxd5 Nxd5 9. d4 Nd7 10. a3 c5 11. Nbd2 Rc8 12. Re1 cxd4 13. Nxd4 Nc3 14. Bxc3 Bxg2 15. Kxg2 Rxc3 16. Ne4 Rc8 17. a4 Nc5 18. Nxc5 Bxc5 19. Nf3 Qe7 20. Qd3 Rfd8 21. Qa6 h6 {½-½ (21) Nakamura,H (2746)-Nepomniachtchi,I (2763) St Petersburg 2018}) 4. d3 {[%emt 0:00:00]} Bg7 {[%emt 0:01:33]} 5. Nbd2 {[%emt 0:01:43]} c5 {[%emt 0:03:32]} 6. g3 {[%emt 0:00:28] A06: Réti Opening:1 Nf3 d5} O-O {[%emt 0:00:34]} 7. Bg2 {[%emt 0:04:49]} Qc7 $146 {[%emt 0:00:44]} ({Predecessor:} 7... Nc6 8. Ne5 Nxe5 9. Bxe5 b6 10. O-O Bb7 11. Qc1 {1-0 (26) Frosch,E (2197)-Perhinig,R (2229) Austria 2017}) 8. Be5 {[%emt 0:01:42]} Qb6 {[%emt 0:05:15]} 9. Bb2 {[%emt 0:00:26]} Nc6 10. O-O {[%emt 0:00:46]} Ng4 {[%emt 0:01:51]} 11. Bxg7 {[%emt 0:03:44]} Kxg7 {[%emt 0:01:03]} 12. Re1 {[%emt 0:04:14]} c4 {[%emt 0:06:58]} 13. e3 {[%emt 0:03:48]} cxd3 {[%emt 0:03:42]} 14. cxd3 {[%emt 0:00:24]} e5 {[%emt 0:01:42]} 15. h3 {[%emt 0:05:10]} Nf6 {[%emt 0:02:38]} 16. e4 {[%emt 0:03:08]} d4 {[%emt 0:03:08]} 17. Nc4 Qc7 {[%emt 0:04:41]} 18. Rc1 {[%emt 0:03:57]} Nd7 {[%emt 0:00:46]} 19. Ng5 {[%emt 0:08:44]} (19. b4 $11) 19... Nc5 {[%emt 0:07:50]} 20. Qd2 {[%emt 0:09:14]} a5 {[%emt 0:09:17]} 21. Nb2 {[%emt 0:04:24]} (21. f4 $1 $15) 21... b6 {[%emt 0:05:16]} 22. Rc4 {[%emt 0:08:38]} (22. f4 $15) 22... Ba6 {[%emt 0:05:46]} 23. Rcc1 {[%emt 0:10:28]} Qe7 {[%emt 0:07:18]} 24. Nf3 {[%emt 0:10:58]} Nb4 {[%emt 0:01:12]} 25. Bf1 {[%emt 0:04:28]} Nxa2 {[%emt 0:00:29]} 26. Rb1 {[%emt 0:04:44]} Nc3 {[%emt 0:02:01]} 27. Nc4 {[%emt 0:08:36]} Nxb1 {[%emt 0:02:33]} 28. Rxb1 {[%emt 0:00:09]} Bxc4 {[%emt 0:00:35]} 29. bxc4 {[%emt 0:01:56]} Rab8 {[%emt 0:06:09]} 30. Nh2 {[%emt 0:04:03]} h5 {[%emt 0:05:42]} 31. f4 {[%emt 0:00:10]} exf4 {[%emt 0:00:47]} 32. Qxf4 {[%emt 0:00:45]} a4 {[%emt 0:00:39]} 33. Qf2 {[%emt 0:01:01]} f5 $19 {[%emt 0:01:02]} 34. Qxd4+ {[%emt 0:03:29]} Kh7 {[%emt 0:03:26]} 35. e5 {[%emt 0:00:54]} Rbd8 {[%emt 0:00:49]} 36. Qe3 {[%emt 0:02:03]} Qd7 {[%emt 0:00:59]} 37. Rxb6 {[%emt 0:02:56]} Nxd3 38. Rd6 1/2-1/2

[Event "FIDE Zonal 2.5 Open 2019"]
[Site "Montevideo"]
[Date "2019.04.16"]
[Round "6.27"]
[White "Lanaro, Emilio"]
[Black "Palacio, Enzo"]
[Result "1/2-1/2"]
[ECO "B34"]
[WhiteElo "1694"]
[BlackElo "1745"]
[Annotator "NA RC"]
[PlyCount "49"]
[EventDate "2019.04.13"]
[EventType "swiss"]
[EventCountry "URU"]
[SourceTitle "playchess.com"]
[Source "ChessBase"]
[SourceQuality "1"]
[TimeControl "40/5400+30:1800+30"]

1. e4 {[%emt 0:00:00]} c5 {[%emt 0:00:00]} 2. Nf3 {[%emt 0:00:00]} Nc6 {[%emt 0:00:00]} 3. d4 {[%emt 0:00:00]} cxd4 {[%emt 0:00:00]} 4. Nxd4 {[%emt 0:00:05]} Nf6 {[%emt 0:00:00]} 5. Nc3 {[%emt 0:00:39]} e5 {[%emt 0:00:00]} 6. Ndb5 {[%emt 0:02:11]} d6 {[%emt 0:00:00]} 7. Nd5 {[%emt 0:02:06]} Nxd5 {[%emt 0:00:04]} 8. exd5 {[%emt 0:00:26]} Nb8 {[%emt 0:00:04]} 9. c4 {[%emt 0:00:58]} Be7 {[%emt 0:00:03]} 10. Be2 {[%emt 0:03:04]} O-O {[%emt 0:00:05]} 11. O-O {[%emt 0:00:27]} a6 {[%emt 0:00:09]} 12. Nc3 {[%emt 0:00:16]} f5 {[%emt 0:00:02]} 13. Bd2 {[%emt 0:08:26]} Nd7 {[%emt 0:01:11]} 14. Rc1 {[%emt 0:02:33]} Bg5 {[%emt 0:00:07]} 15. Bxg5 {[%emt 0:10:41]} Qxg5 {[%emt 0:00:04]} 16. f4 {[%emt 0:01:34]} exf4 {[%emt 0:03:02]} 17. Qd4 {[%emt 0:01:02]} f3 {[%emt 0:04:52]} 18. Bxf3 {[%emt 0:01:10]} Ne5 {[%emt 0:00:02]} 19. Be2 {[%emt 0:01:27]} f4 {[%emt 0:00:26]} 20. Ne4 {[%emt 0:02:44]} Qg6 {[%emt 0:00:13]} 21. Rc3 {[%emt 0:06:30]} Bf5 {[%emt 0:04:07]} 22. Nd2 {[%emt 0:05:03]} Bg4 {[%emt 0:11:40]} 23. Bxg4 {[%emt 0:07:11]} Qxg4 {[%emt 0:00:15]} 24. Nf3 {[%emt 0:00:28]} Rae8 {[%emt 0:01:42]} 25. Nxe5 {[%emt 0:08:35]} 1/2-1/2

[Event "FIDE Zonal 2.5 Open 2019"]
[Site "Montevideo"]
[Date "2019.04.17"]
[Round "7.3"]
[White "Rodriguez Vila, Andres"]
[Black "Cubas, Jose Fernando"]
[Result "1-0"]
[ECO "B23"]
[WhiteElo "2480"]
[BlackElo "2505"]
[Annotator "RC"]
[PlyCount "89"]
[EventDate "2019.04.13"]
[EventType "swiss"]
[EventCountry "URU"]
[SourceTitle "playchess.com"]
[Source "ChessBase"]
[SourceQuality "1"]
[TimeControl "40/5400+30:1800+30"]

1. e4 {[%emt 0:00:00]} c5 {[%emt 0:03:35]} 2. Nc3 {[%emt 0:00:00]} a6 {[%emt 0:01:03]} 3. Nf3 {[%emt 0:00:00]} d6 {[%emt 0:00:49]} 4. g3 {[%emt 0:00:03]} Nf6 {[%emt 0:06:10]} 5. Bg2 {[%emt 0:00:07]} Nc6 {[%emt 0:08:17]} 6. d4 {[%emt 0:00:30]} cxd4 {[%emt 0:00:25]} 7. Nxd4 {[%emt 0:00:03]} Bd7 {[%emt 0:04:50]} 8. O-O {[%emt 0:01:10]} e6 {[%emt 0:04:35]} 9. Be3 {[%emt 0:03:46]} Be7 {[%emt 0:00:55]} 10. f4 {[%emt 0:01:19]} O-O {[%emt 0:03:46]} 11. Qe2 {[%emt 0:00:15]} Qc7 {[%emt 0:09:56]} 12. a4 {[%emt 0:01:14]} Rac8 {[%emt 0:05:52]} 13. f5 {[%emt 0:13:31]} Nxd4 {[%emt 0:13:10]} 14. Bxd4 {[%emt 0:01:28]} Qc4 {[%emt 0:00:04]} 15. Qd2 {[%emt 0:00:26]} exf5 {[%emt 0:10:29]} 16. exf5 {[%emt 0:02:56]} Bc6 {[%emt 0:00:01]} 17. Rf4 {[%emt 0:07:46]} Nh5 {[%emt 0:02:07]} 18. Rg4 {[%emt 0:03:25]} Bf6 {[%emt 0:03:41]} 19. Rd1 {[%emt 0:06:33]} Rfe8 {[%emt 0:06:46]} 20. Qf2 {[%emt 0:20:58]} Bxg2 {[%emt 0:05:25]} 21. Kxg2 {[%emt 0:02:38]} Be5 {[%emt 0:03:24]} 22. Rh4 {[%emt 0:09:28]} Nf6 {[%emt 0:00:25]} 23. Bxe5 {[%emt 0:02:35]} Qc6+ {[%emt 0:00:05]} 24. Qf3 {[%emt 0:00:04]} Qxf3+ {[%emt 0:03:58]} 25. Kxf3 {[%emt 0:00:05]} Rxe5 {[%emt 0:00:36]} 26. Rf4 {[%emt 0:09:38]} d5 {[%emt 0:01:30]} 27. g4 {[%emt 0:00:08]} h6 {[%emt 0:00:12]} 28. Rb4 {[%emt 0:01:49]} Rce8 {[%emt 0:00:36]} 29. Kf4 {[%emt 0:07:10]} g5+ {[%emt 0:01:02]} 30. fxg6 {[%emt 0:00:05]} fxg6 {[%emt 0:00:02]} 31. Rxb7 {[%emt 0:00:41]} g5+ {[%emt 0:01:06]} 32. Kg3 {[%emt 0:00:04]} Re3+ {[%emt 0:00:20]} 33. Kg2 {[%emt 0:00:07]} Nxg4 {[%emt 0:00:40]} 34. Nxd5 {[%emt 0:00:32]} Re2+ {[%emt 0:00:27]} 35. Kg3 {[%emt 0:00:08]} h5 {[%emt 0:00:31]} 36. h3 {[%emt 0:00:20]} Nh2 {[%emt 0:00:13]} 37. Nf6+ {[%emt 0:02:05]} Kf8 {[%emt 0:00:01]} 38. Nh7+ {[%emt 0:00:47]} Kg8 {[%emt 0:00:01]} 39. Nxg5 {[%emt 0:00:12]} Rxc2 {[%emt 0:01:44]} 40. Rd6 {[%emt 0:01:33]} Nf1+ {[%emt 0:00:23]} 41. Kh4 {[%emt 0:30:32]} Rc4+ {[%emt 0:00:26]} 42. Kxh5 {[%emt 0:00:00]} Ng3+ {[%emt 0:02:35]} 43. Kg6 {[%emt 0:00:00]} Rf4 {[%emt 0:01:59]} 44. Rg7+ {[%emt 0:00:00]} Kf8 {[%emt 0:01:49]} 45. Nh7# 1-0

[Event "FIDE Zonal 2.5 Open 2019"]
[Site "Montevideo"]
[Date "2019.04.17"]
[Round "7.10"]
[White "Suarez, Pedro"]
[Black "Lopez Azambuja, Nicolas"]
[Result "0-1"]
[ECO "E15"]
[WhiteElo "2019"]
[BlackElo "2328"]
[Annotator "NA RC"]
[PlyCount "100"]
[EventDate "2019.04.13"]
[EventType "swiss"]
[EventCountry "URU"]
[SourceTitle "playchess.com"]
[Source "ChessBase"]
[SourceQuality "1"]
[TimeControl "40/5400+30:1800+30"]

{[%evp 9,95,14,32767,12,16,32767,32767,32767,32767,32767,19,-22,32767,6,17,13,16,0,18,18,22,19,24,0,-5,0,32767,0,29,13,31,40,47,23,32767,14,32767,32767,32767,32767,79,32767,32767,68,32767,32767,82,13,18,14,5,0,0,-60,23,0,17,14,11,0,0,0,32767,32767,32767,32767,0,-58,-45,32767,32767,32767,32767,-281,-256,-645,-414,-314,-454,-466,-497,-637,-568,-599,19,-608,-570,-783]} 1. d4 {[%emt 0:00:00]} Nf6 {[%emt 0:03:34]} 2. c4 {[%emt 0:00:00]} e6 {[%emt 0:00:09]} 3. Nf3 {[%emt 0:00:02]} b6 {[%emt 0:00:09]} 4. g3 {[%emt 0:00:41]} Ba6 {[%emt 0:00:13]} 5. b3 {[%emt 0:04:51]} Bb4+ {[%emt 0:00:30]} 6. Bd2 {[%emt 0:00:30]} Be7 {[%emt 0:00:23]} 7. Bg2 {[%emt 0:00:14]} O-O {[%emt 0:01:17]} 8. O-O {[%emt 0:00:36]} d5 {[%emt 0:00:13]} 9. Bf4 $146 {[%emt 0:10:11] E15: Queen's Indian: 4 g3 sidelines, 4 g3 Ba6 and 4 g3 Bb7 early deviations} ({You set blue moves yourself with the critical opening position annotation.:} 9. cxd5 exd5 10. Nc3 Re8 11. Qc2 c5 12. Rfd1 Nc6 13. Bg5 h6 14. Bxf6 Bxf6 15. e3 cxd4 16. Nxd4 Nxd4 17. exd4 Rc8 18. Qd2 Bb7 {½-½ (46) Bu,X (2705)-Matlakov,M (2694) Doha 2016}) 9... Nbd7 {[%emt 0:06:36]} 10. Nc3 {[%emt 0:08:28]} Bb7 {[%emt 0:05:45]} 11. cxd5 {[%emt 0:21:17]} Nxd5 {[%emt 0:14:27]} 12. Nxd5 {[%emt 0:00:09]} exd5 {[%emt 0:01:06]} 13. h4 {[%emt 0:03:36]} Nf6 {[%emt 0:03:54]} 14. Rc1 {[%emt 0:06:38]} c5 {[%emt 0:02:27]} 15. Ne5 {[%emt 0:02:41]} Re8 {[%emt 0:05:04]} 16. Qd3 {[%emt 0:08:41]} Bd6 {[%emt 0:05:37]} 17. e3 {[%emt 0:07:58]} a5 {[%emt 0:08:02]} 18. Qd1 {[%emt 0:04:12]} Qe7 {[%emt 0:08:06]} 19. Nd3 {[%emt 0:06:52]} Rac8 {[%emt 0:07:14]} 20. Bxd6 {[%emt 0:01:10]} Qxd6 {[%emt 0:00:06]} 21. Nf4 {[%emt 0:00:23]} Red8 {[%emt 0:03:36]} 22. Qe2 {[%emt 0:01:14]} Ra8 {[%emt 0:05:44]} 23. Rfd1 {[%emt 0:01:12]} Ba6 {[%emt 0:02:28]} 24. Qd2 {[%emt 0:00:25]} c4 {[%emt 0:05:27]} 25. bxc4 {[%emt 0:00:28]} Bxc4 {[%emt 0:00:14]} 26. e4 {[%emt 0:00:58]} Qb4 {[%emt 0:01:26]} 27. e5 {[%emt 0:00:14]} Ne8 {[%emt 0:02:18]} 28. Rb1 {[%emt 0:01:08]} (28. Qxb4 $16 axb4 29. Nd3) 28... Qxd2 {[%emt 0:00:13]} 29. Rxd2 {[%emt 0:00:02]} b5 {[%emt 0:00:12]} 30. a3 {[%emt 0:00:24]} Nc7 {[%emt 0:00:28]} 31. Bh3 {[%emt 0:00:54]} (31. Bf1 $11) 31... Ra6 {[%emt 0:00:21]} ({Black should play} 31... Rdb8 $15) 32. Ng2 {[%emt 0:01:13]} Rc6 {[%emt 0:01:18]} 33. Ne3 {[%emt 0:00:14]} g6 {[%emt 0:00:42]} 34. f4 {[%emt 0:00:34]} Rb8 {[%emt 0:05:45]} 35. Ng4 {[%emt 0:01:29]} Ne8 {[%emt 0:00:19]} 36. Ne3 {[%emt 0:00:05]} Nc7 {[%emt 0:00:06]} 37. Ng4 {[%emt 0:00:02]} b4 {[%emt 0:00:39]} 38. axb4 {[%emt 0:00:10]} (38. Nf6+ $11 Kg7 39. h5) 38... Rxb4 {[%emt 0:00:05]} 39. Rxb4 {[%emt 0:00:10]} axb4 {[%emt 0:00:01]} 40. Nf6+ {[%emt 0:00:14]} Kg7 {[%emt 0:00:10]} 41. Kf2 {[%emt 0:31:12]} b3 {[%emt 0:30:54]} 42. Bc8 $2 {[%emt 0:03:03]} (42. Nd7) 42... Rb6 {[%emt 0:00:00]} 43. Rb2 {[%emt 0:00:00]} Rb8 {[%emt 0:00:00]} 44. Bd7 {[%emt 0:00:00] [#]} Ra8 $1 {[%emt 0:00:00]} 45. Ke3 {[%emt 0:00:00]} Ra2 {[%emt 0:00:00]} 46. Rb1 {[%emt 0:00:00]} Re2+ {[%emt 0:00:00]} 47. Kf3 {[%emt 0:00:00]} b2 {[%emt 0:00:00]} 48. Ba4 $19 {[%emt 0:00:00]} Ne6 {[%emt 0:00:00]} 49. Bd1 {[%emt 0:00:00]} Nxd4+ {[%emt 0:00:00]} 50. Kg4 {[%emt 0:00:00]} Rh2 {[%emt 0:00:00]} 0-1

[Event "FIDE Zonal 2.5 Open 2019"]
[Site "Montevideo"]
[Date "2019.04.17"]
[Round "7.17"]
[White "Viera, Emilio"]
[Black "Curia, Santiago Jose"]
[Result "1-0"]
[ECO "A13"]
[WhiteElo "2138"]
[BlackElo "1989"]
[Annotator "RC"]
[PlyCount "81"]
[EventDate "2019.04.13"]
[EventType "swiss"]
[EventCountry "URU"]
[SourceTitle "playchess.com"]
[Source "ChessBase"]
[SourceQuality "1"]
[TimeControl "40/5400+30:1800+30"]

1. c4 {[%emt 0:06:25]} e6 {[%emt 0:00:00]} 2. Nc3 {[%emt 0:01:56]} d5 {[%emt 0:00:02]} 3. cxd5 {[%emt 0:05:24]} exd5 {[%emt 0:00:03]} 4. d4 {[%emt 0:00:07]} h6 {[%emt 0:00:23]} 5. Nf3 {[%emt 0:02:19]} Nf6 {[%emt 0:00:11]} 6. Bf4 {[%emt 0:01:07]} Bd6 {[%emt 0:00:09]} 7. Bxd6 {[%emt 0:02:04]} Qxd6 {[%emt 0:00:08]} 8. e3 {[%emt 0:00:02]} O-O {[%emt 0:16:12]} 9. Bd3 {[%emt 0:02:47]} c6 {[%emt 0:01:12]} 10. Qc2 {[%emt 0:06:49]} Re8 {[%emt 0:02:55]} 11. O-O {[%emt 0:05:22]} Nbd7 {[%emt 0:05:31]} 12. Rab1 {[%emt 0:03:55]} a5 {[%emt 0:00:11]} 13. a3 {[%emt 0:03:49]} Qe7 {[%emt 0:06:17]} 14. Nd2 {[%emt 0:12:09]} b5 {[%emt 0:05:27]} 15. a4 {[%emt 0:06:17]} b4 {[%emt 0:01:17]} 16. Ne2 {[%emt 0:00:17]} Ba6 {[%emt 0:05:33]} 17. Nb3 {[%emt 0:01:53]} Bxd3 {[%emt 0:00:49]} 18. Qxd3 {[%emt 0:00:03]} Ne4 {[%emt 0:00:10]} 19. Ng3 {[%emt 0:01:05]} Nb6 {[%emt 0:16:17]} 20. Nxe4 {[%emt 0:08:21]} Qxe4 {[%emt 0:03:30]} 21. Qxe4 {[%emt 0:00:06]} Rxe4 {[%emt 0:01:39]} 22. Nc5 {[%emt 0:00:39]} Re7 {[%emt 0:05:43]} 23. b3 {[%emt 0:00:25]} Rc7 {[%emt 0:00:43]} 24. Rbc1 {[%emt 0:00:32]} Kf8 {[%emt 0:00:52]} 25. Rc2 {[%emt 0:01:17]} Nc8 {[%emt 0:04:44]} 26. Rfc1 {[%emt 0:06:35]} Ne7 {[%emt 0:01:00]} 27. Nd3 {[%emt 0:01:33]} Ra6 {[%emt 0:01:13]} 28. g4 {[%emt 0:01:20]} Ke8 {[%emt 0:01:31]} 29. Kg2 {[%emt 0:01:32]} f6 {[%emt 0:02:15]} 30. Nc5 {[%emt 0:01:51]} Rb6 {[%emt 0:01:42]} 31. Ne6 {[%emt 0:00:06]} Kd7 {[%emt 0:01:42]} 32. Nxc7 {[%emt 0:00:21]} Kxc7 {[%emt 0:00:03]} 33. h4 {[%emt 0:00:27]} Kd6 {[%emt 0:00:19]} 34. h5 {[%emt 0:00:35]} Kd7 {[%emt 0:00:23]} 35. f3 {[%emt 0:00:53]} Nc8 {[%emt 0:00:56]} 36. Kg3 {[%emt 0:00:44]} Nd6 {[%emt 0:00:31]} 37. Kf4 {[%emt 0:00:44]} Nf7 {[%emt 0:00:47]} 38. Rc5 {[%emt 0:00:35]} Ra6 {[%emt 0:00:07]} 39. e4 {[%emt 0:01:16]} Nd8 {[%emt 0:00:14]} 40. exd5 {[%emt 0:00:49]} Kd6 {[%emt 0:00:16]} 41. Ke4 {[%emt 0:31:56]} 1-0

[Event "FIDE Zonal 2.5 Open 2019"]
[Site "Montevideo"]
[Date "2019.04.17"]
[Round "7.20"]
[White "Manteiga, Franco"]
[Black "Pichuaga, Juan Pablo"]
[Result "0-1"]
[ECO "D35"]
[WhiteElo "1684"]
[BlackElo "2021"]
[Annotator "NA RC"]
[PlyCount "82"]
[EventDate "2019.04.13"]
[EventType "swiss"]
[EventCountry "URU"]
[SourceTitle "playchess.com"]
[Source "ChessBase"]
[SourceQuality "1"]
[TimeControl "40/5400+30:1800+30"]

{[%evp 21,82,32,32767,32767,32767,32767,32767,32767,32767,145,161,32767,178,32767,158,120,171,162,160,32767,32767,32767,32767,32767,32767,32767,32767,32767,76,73,97,126,115,114,108,93,87,94,87,83,193,0,32767,32767,32767,32767,32767,32767,32767,32767,77,-349,-393,-447,-474,-501,-483,-524,-513,-822,-661,-817,-864]} 1. d4 {[%emt 0:00:00]} d5 {[%emt 0:00:00]} 2. c4 {[%emt 0:00:05]} e6 {[%emt 0:00:02]} 3. Nc3 {[%emt 0:00:23]} Nf6 {[%emt 0:00:06]} 4. cxd5 {[%emt 0:00:25]} exd5 {[%emt 0:00:07]} 5. Bg5 {[%emt 0:00:11]} Be7 {[%emt 0:00:53]} 6. e3 {[%emt 0:00:15]} c6 {[%emt 0:00:26]} 7. Bd3 {[%emt 0:00:53]} O-O {[%emt 0:03:54]} 8. Qc2 {[%emt 0:00:06]} Nbd7 {[%emt 0:00:12]} 9. Nf3 {[%emt 0:01:06]} Re8 {[%emt 0:00:38]} 10. O-O {[%emt 0:02:43]} Ne4 {[%emt 0:03:53]} 11. Bf4 {[%emt 0:01:36]} ({Better is} 11. Bxe4 $16 dxe4 12. Nxe4) 11... Nef6 {[%emt 0:02:27] D36: Queen's Gambit Declined: Exchange Variation: Main line (5 Bg5 c6 6 Qc2)} (11... Ndf6 12. Ne5 Nxc3 13. bxc3 c5 14. Rab1 g6 15. c4 Bd6 16. Bg5 Bxe5 17. dxe5 Rxe5 18. f4 Rxg5 19. fxg5 {1-0 (67) Margvelashvili,G (2530)-Aleskerov,F (2315) chess.com INT 2018}) 12. Nb5 {[%emt 0:09:33]} Nf8 {[%emt 0:05:46]} 13. Nc7 {[%emt 0:01:35]} Nh5 $146 {[%emt 0:01:37]} ({Predecessor:} 13... Be6 14. Nxa8 Qxa8 15. h3 g6 16. a3 Qc8 17. b4 a6 18. Rab1 Ne4 19. Bxe4 dxe4 {1-0 (38) Gesser,B (2254)-Stojanovic,M (2199) Dresden 2008}) 14. Nxe8 {[%emt 0:02:41]} Qxe8 {[%emt 0:02:28]} 15. a3 {[%emt 0:13:18]} a5 {[%emt 0:05:05]} 16. Rfe1 {[%emt 0:14:53]} g6 {[%emt 0:07:47]} 17. Qe2 {[%emt 0:07:52]} Ne6 {[%emt 0:08:16]} 18. Bg3 {[%emt 0:04:51]} Qf8 {[%emt 0:01:48]} 19. Bh4 {[%emt 0:06:13]} Bd6 {[%emt 0:01:31]} 20. Bg3 {[%emt 0:05:33]} Be7 {[%emt 0:00:35]} 21. Bh4 {[%emt 0:01:15]} Bd6 {[%emt 0:00:15]} 22. Bg3 {[%emt 0:00:11]} Be7 {[%emt 0:00:12]} 23. Nd2 {[%emt 0:03:48]} Bd7 {[%emt 0:04:39]} 24. f4 {[%emt 0:01:50]} Nxg3 {[%emt 0:05:45]} 25. hxg3 {[%emt 0:00:07]} f5 {[%emt 0:05:13]} 26. Nf3 {[%emt 0:00:46]} Ng7 {[%emt 0:00:19]} 27. Ne5 {[%emt 0:00:50]} Be6 {[%emt 0:01:35]} 28. Kf2 {[%emt 0:01:40]} Nh5 {[%emt 0:02:57]} 29. Rh1 {[%emt 0:01:22]} Nf6 {[%emt 0:02:02]} 30. Rh3 {[%emt 0:04:47]} Kg7 {[%emt 0:05:29]} (30... Qg7 $16) 31. Rhh1 $2 {[%emt 0:01:33]} ({Better is} 31. Rah1 $18) 31... h5 {[%emt 0:01:57]} 32. Qc2 {[%emt 0:02:00]} Bd6 {[%emt 0:04:03]} 33. Rac1 {[%emt 0:01:11]} Qe7 {[%emt 0:03:35]} 34. Qc3 {[%emt 0:03:01]} a4 {[%emt 0:04:22]} 35. Qc2 {[%emt 0:03:50]} Bc8 {[%emt 0:06:43]} 36. Bb5 $2 {[%emt 0:02:29]} (36. Kf1 $16 {keeps the pressure on.}) 36... cxb5 {[%emt 0:02:25]} 37. Rhd1 {[%emt 0:00:50]} Bd7 {[%emt 0:01:45]} 38. Qe2 {[%emt 0:00:24]} Be8 {[%emt 0:00:46]} 39. Rc2 {[%emt 0:00:41]} Ne4+ {[%emt 0:00:46]} 40. Ke1 {[%emt 0:02:39]} Nxg3 {[%emt 0:00:41]} 41. Qf2 {[%emt 0:30:33]} Ne4 $19 {[%emt 0:30:16]} 0-1

[Event "FIDE Zonal 2.5 Open 2019"]
[Site "Montevideo"]
[Date "2019.04.17"]
[Round "7.21"]
[White "Dotta, Gian Franco"]
[Black "Pena Canapa, Alfredo"]
[Result "1-0"]
[ECO "C44"]
[WhiteElo "1959"]
[BlackElo "1811"]
[Annotator "NA RC"]
[PlyCount "71"]
[EventDate "2019.04.13"]
[EventType "swiss"]
[EventCountry "URU"]
[SourceTitle "playchess.com"]
[Source "ChessBase"]
[SourceQuality "1"]
[TimeControl "40/5400+30:1800+30"]

1. e4 {[%emt 0:00:00]} e5 {[%emt 0:00:00]} 2. Nf3 {[%emt 0:00:00]} Nc6 {[%emt 0:00:00]} 3. d4 {[%emt 0:00:00]} exd4 {[%emt 0:00:05]} 4. Nxd4 {[%emt 0:00:00]} Bb4+ {[%emt 0:00:37]} 5. c3 {[%emt 0:00:00]} Bc5 {[%emt 0:00:17]} 6. Be3 {[%emt 0:01:24]} Bb6 {[%emt 0:00:24]} 7. Nf5 {[%emt 0:01:09]} Bxe3 {[%emt 0:00:26] C45: Scotch Game} 8. Nxe3 {[%emt 0:00:10]} Nf6 {[%emt 0:00:28]} (8... d6 9. g3 Nge7 10. Bg2 O-O 11. O-O Kh8 12. Nd2 f5 13. f4 fxe4 14. Nxe4 Nf5 15. Re1 {1-0 (51) Matlakov,M (2700)-Postny,E (2615) St Petersburg 2018}) 9. Bd3 {[%emt 0:00:32]} O-O {[%emt 0:00:28]} 10. c4 {[%emt 0:00:38]} d6 {[%emt 0:01:29]} 11. O-O {[%emt 0:00:17]} Re8 {[%emt 0:03:03]} 12. Nc3 {[%emt 0:00:12]} Nd7 $146 {[%emt 0:06:17]} ({Predecessor:} 12... Nd4 13. f3 a6 14. Re1 c6 15. Bf1 {½-½ (33) Brizzi,M (2063)-Romero Barreto,J (2300) Buenos Aires 2018}) 13. Ned5 {[%emt 0:01:53]} a6 {[%emt 0:02:29]} 14. f3 {[%emt 0:08:20]} Nc5 {[%emt 0:05:22]} 15. Rc1 {[%emt 0:06:52]} Ne5 {[%emt 0:03:38]} 16. Be2 {[%emt 0:02:37]} c6 {[%emt 0:03:28]} 17. Ne3 {[%emt 0:01:24]} Qf6 {[%emt 0:08:10]} 18. b4 {[%emt 0:14:46]} Ne6 $1 {[%emt 0:02:46]} 19. Nf5 $2 {[%emt 0:03:03]} (19. g3 $11) 19... Nf4 {[%emt 0:05:13]} 20. Nxd6 {[%emt 0:17:41]} Rd8 {[%emt 0:26:58]} 21. c5 {[%emt 0:00:23]} Qg5 {[%emt 0:01:03]} 22. g3 $1 {[%emt 0:01:36]} Bh3 {[%emt 0:00:20]} 23. Re1 {[%emt 0:02:59]} Ng2 {[%emt 0:09:36]} (23... a5 $15 24. Qd2 {[%mdl 64] Pin} Nxe2+ 25. Qxe2 axb4) 24. Rf1 {[%emt 0:00:37]} Ne3 {[%emt 0:01:28]} 25. Qd2 $1 {[%emt 0:00:45]} Bxf1 {[%emt 0:02:03]} 26. Rxf1 {[%emt 0:02:43]} Qh6 {[%emt 0:00:38]} 27. Re1 {[%emt 0:05:29]} N3c4 $2 {[%emt 0:00:25]} (27... b5 $11 {and Black has nothing to worry.}) 28. Qxh6 {[%emt 0:03:20]} gxh6 {[%emt 0:00:15]} 29. Nxc4 $18 {[%emt 0:00:13]} Nxc4 {[%emt 0:01:34]} 30. Bxc4 {[%emt 0:00:06]} Rd2 {[%emt 0:01:02]} 31. Re2 {[%emt 0:08:39]} Rad8 {[%emt 0:00:07]} 32. Kf2 {[%emt 0:02:19]} R2d4 {[%emt 0:01:17]} 33. Bb3 {[%emt 0:00:32]} Rxb4 {[%emt 0:00:04]} 34. Rb2 {[%emt 0:01:09]} Kf8 {[%emt 0:00:32]} 35. Ke3 {[%emt 0:01:57]} Rbd4 {[%emt 0:01:11]} 36. Nd5 {[%emt 0:00:20]} 1-0